[Event "FIDE World School-ch O-13 2025"]
[Site "Vrnjacka Banja"]
[Date "2025.03.22"]
[Round "3.8"]
[White "Yang, Maxwell"]
[Black "Lee, Jiwoo A"]
[Result "1-0"]
[Annotator "NA RC"]
[ECO "E44"]
[WhiteElo "1970"]
[BlackElo "1915"]
[PlyCount "103"]
[EventDate "2025.03.19"]
[EventType "swiss"]
[EventCountry "SRB"]
[SourceTitle "playchess.com"]
[Source "ChessBase"]
[SourceQuality "1"]
[TimeControl "5400+30"]

1. d4 {[%emt 0:00:26]} Nf6 {[%emt 0:00:19]} 2. c4 {[%emt 0:01:19]} e6 {[%emt 0:00:06]} 3. Nc3 {[%emt 0:00:04]} Bb4 {[%emt 0:00:39]} 4. e3 {[%emt 0:00:31]} b6 {[%emt 0:00:22]} 5. Nge2 {[%emt 0:00:19]} Bb7 {[%emt 0:00:28]} 6. a3 {[%emt 0:00:07]} Be7 {[%emt 0:00:31]} 7. d5 {[%emt 0:00:52]} e5 {[%emt 0:07:49]} 8. Ng3 {[%emt 0:08:07]} g6 {[%emt 0:06:13]} 9. Bd3 {[%emt 0:08:44]} d6 $16 {[%emt 0:06:25]} 10. e4 {[%emt 0:02:18]} Nbd7 {[%emt 0:01:07]} 11. Be3 {[%emt 0:00:21]} Bf8 {[%emt 0:04:00]} 12. O-O {[%emt 0:12:07]} Bg7 {[%emt 0:00:21]} 13. h3 {[%emt 0:00:50]} O-O {[%emt 0:00:09]} 14. Qd2 {[%emt 0:07:03]} Rc8 {[%emt 0:15:36]} 15. b4 {[%emt 0:06:10]} c6 {[%emt 0:05:44]} 16. Rac1 {[%emt 0:04:01]} Ne8 {[%emt 0:09:10]} 17. dxc6 {[%emt 0:03:39]} Bxc6 {[%emt 0:00:06]} 18. f3 {[%emt 0:00:09]} Nc7 {[%emt 0:01:59]} 19. Bc2 {[%emt 0:02:55]} Nf6 {[%emt 0:05:41]} 20. Rfd1 {[%emt 0:02:42]} Ne6 {[%emt 0:02:40]} 21. Nge2 {[%emt 0:06:04]} Qe8 {[%emt 0:03:05]} 22. b5 {[%emt 0:11:01]} Bb7 {[%emt 0:03:48]} 23. Qxd6 {[%emt 0:04:24]} Rxc4 {[%emt 0:00:45]} 24. Bb3 {[%emt 0:00:10]} Rc8 {[%emt 0:00:10]} 25. Nd5 {[%emt 0:02:22]} Bxd5 {[%emt 0:11:54]} 26. Rxc8 {[%emt 0:05:48]} Qxc8 {[%emt 0:00:10]} 27. exd5 {[%emt 0:00:14]} Nc7 {[%emt 0:02:36]} 28. Qc6 {[%emt 0:00:49]} Qd8 {[%emt 0:01:33]} 29. d6 {[%emt 0:03:56]} Ne6 {[%emt 0:00:54]} 30. Bxe6 {[%emt 0:05:04]} fxe6 {[%emt 0:00:08]} 31. d7 {[%emt 0:00:07]} Qe7 {[%emt 0:00:43]} 32. Bg5 {[%emt 0:00:10]} Rd8 {[%emt 0:00:43]} 33. Bxf6 {[%emt 0:00:29]} Bxf6 {[%emt 0:00:08]} 34. Rd6 {[%emt 0:00:21]} Bg7 {[%emt 0:01:08]} 35. Ng3 {[%emt 0:00:32]} Bf8 {[%emt 0:00:50]} 36. Ne4 {[%emt 0:00:21]} Qf7 {[%emt 0:01:07]} 37. Rxe6 {[%emt 0:00:14]} Qf4 {[%emt 0:00:34]} 38. Re8 {[%emt 0:00:45]} Kg7 {[%emt 0:01:19]} 39. Rxd8 {[%emt 0:02:55]} Bc5+ {[%emt 0:00:04]} 40. Qxc5 {[%emt 0:00:31]} bxc5 {[%emt 0:00:12]} 41. Rg8+ {[%emt 0:00:23]} Kxg8 {[%emt 0:00:06]} 42. d8=Q+ {[%emt 0:00:08]} Kg7 {[%emt 0:00:03]} 43. Qe7+ {[%emt 0:00:11]} Kh6 {[%emt 0:00:26]} 44. Qxc5 {[%emt 0:00:20]} Kh5 {[%emt 0:01:23]} 45. Qc3 {[%emt 0:00:27]} g5 {[%emt 0:01:11]} 46. g3 {[%emt 0:00:19]} Qf7 {[%emt 0:00:22]} 47. Qxe5 {[%emt 0:00:17]} h6 {[%emt 0:00:48]} 48. g4+ {[%emt 0:00:17]} Kg6 {[%emt 0:00:06]} 49. Qf5+ {[%emt 0:00:12]} Qxf5 {[%emt 0:00:05]} 50. gxf5+ {[%emt 0:00:07]} Kxf5 {[%emt 0:00:03]} 51. a4 {[%emt 0:00:09]} Ke5 {[%emt 0:00:08]} 52. Kf2 {[%emt 0:00:28]} 1-0